fUST/lending_fUST_20241218
["ID","MTS","AMOUNT","RATE_DAILY","PERIOD"]
[345841552,1734509433101,-151.0,0.00024366,7]
[345841553,1734509433111,-151.0,0.00024366,7]
[345841554,1734509433122,-151.0,0.00024366,7]
[345841555,1734509433132,-151.0,0.00024366,7]
[345841556,1734509433143,-151.0,0.00024366,7]
[345841557,1734509433153,-151.0,0.00024367,7]
[345841558,1734509433163,-6373.98785203,0.0002437,2]
[345841559,1734509433173,-6373.98785203,0.00024373,2]
[345841560,1734509433184,-151.0,0.00024373,7]
[345841561,1734509433194,-151.0,0.00024373,7]
[345841562,1734509433205,-151.0,0.00024373,7]
[345841563,1734509433215,-151.0,0.00024373,7]
[345841564,1734509433225,-151.0,0.00024373,7]
[345841565,1734509433235,-151.0,0.00024373,7]
[345841566,1734509433245,-300.0,0.000244,11]
[345841567,1734509433255,-1000.0,0.00024447,2]
[345841568,1734509433265,-151.0,0.00024458,7]
[345841569,1734509433274,-151.0,0.00024458,7]
[345841570,1734509433284,-215.865297,0.00024458,7]
[345841571,1734509433293,-165.593613,0.00024458,7]
[345841572,1734509433304,-151.0,0.00024458,7]
[345841573,1734509433313,-151.0,0.00024458,7]
[345841574,1734509433323,-151.0,0.00024458,7]
[345841575,1734509433333,-278.038178,0.00024458,7]
[345841576,1734509433343,-160.319068,0.00024458,7]
[345841577,1734509433353,-151.0,0.00024458,7]
[345841578,1734509433363,-151.0,0.00024458,7]
[345841579,1734509433373,-284.977659,0.00024458,7]
[345841580,1734509433384,-151.0,0.00024459,7]
[345841581,1734509433394,-151.0,0.00024459,7]
[345841582,1734509433404,-151.0,0.00024459,7]
[345841583,1734509433413,-151.0,0.00024459,7]
[345841584,1734509433423,-301.081927,0.00024459,7]
[345841585,1734509433435,-151.0,0.0002446,7]
[345841586,1734509433445,-151.0,0.0002446,7]
[345841587,1734509433455,-151.0,0.0002446,7]
[345841588,1734509433465,-3060.56,0.0002446,2]
[345841589,1734509433475,-525.62403184,0.00024463,2]
[345841590,1734509433486,-317.47073763,0.00024464,2]
[345841591,1734509433496,-500.0,0.00024464,2]
[345841592,1734509433506,-328.9062769,0.00024464,2]
[345841593,1734509433516,-409.33676447,0.00024464,2]
[345841594,1734509433525,-12416.52181953,0.00024465,2]
[345841595,1734509433535,-757.83130071,0.00024465,2]
[345841596,1734509433545,-89566.17368941,0.00024465,2]
[345841597,1734509433554,-830099.7011018,0.00024467,30]
[345841598,1734509433567,-364.1258152,0.00024467,30]
[345841599,1734509433579,-15524.04440243,0.00024467,30]
[345841661,1734509437950,-500.0,0.00024457,2]
[345841663,1734509437960,-500.0,0.00024457,2]
[345841665,1734509437969,-500.0,0.00024457,2]
[345841667,1734509437979,-454.75607838,0.00024457,2]
[345841669,1734509437988,-500.0,0.00024457,2]
[345841671,1734509437998,-500.0,0.00024457,2]
[345841673,1734509438008,-500.0,0.00024457,2]
[345841675,1734509438017,-500.0,0.00024457,2]
[345841677,1734509438027,-500.0,0.00024457,2]
[345841679,1734509438036,-500.0,0.00024457,2]
[345841681,1734509438045,-500.0,0.00024457,2]
[345841683,1734509438054,-500.0,0.00024457,2]
[345841685,1734509438063,-500.0,0.00024457,2]
[345841687,1734509438073,-500.0,0.00024457,2]
[345841689,1734509438086,-500.0,0.00024457,2]
[345841691,1734509438096,-500.0,0.00024457,2]
[345841693,1734509438105,-500.0,0.00024457,2]
[345841695,1734509438114,-489.61396506,0.00024457,2]
[345841697,1734509438125,-500.0,0.00024457,2]
[345841699,1734509438134,-500.0,0.00024457,2]
[345841701,1734509438144,-327.79782437,0.00024457,2]
[345841703,1734509438155,-172.20217563,0.00024457,2]
[345841705,1734509438165,-500.0,0.00024457,2]
[345841707,1734509438175,-500.0,0.00024457,2]
[345841709,1734509438187,-500.0,0.00024457,2]
[345841711,1734509438197,-500.0,0.00024457,2]
[345841713,1734509438206,-500.0,0.00024457,2]
[345841715,1734509438215,-487.26500628,0.00024457,2]
[345841717,1734509438224,-500.0,0.00024457,2]
[345841719,1734509438234,-500.0,0.00024457,2]
[345841721,1734509438244,-500.0,0.00024457,2]
[345841722,1734509438254,-500.0,0.00024457,2]
[345841724,1734509438263,-500.0,0.00024457,2]
[345841726,1734509438272,-500.0,0.00024457,2]
[345841728,1734509438282,-500.0,0.00024457,2]
[345841730,1734509438292,-500.0,0.00024457,2]
[345841732,1734509438302,-500.0,0.00024457,2]
[345841734,1734509438311,-500.0,0.00024457,2]
[345841736,1734509438320,-226.16952946,0.00024457,2]
[345841738,1734509438330,-500.0,0.00024457,2]
[345841740,1734509438339,-500.0,0.00024457,2]
[345841742,1734509438348,-527.97500387,0.00024457,2]
[345841744,1734509438358,-500.0,0.00024457,2]
[345841745,1734509438367,-500.0,0.00024457,2]
[345841747,1734509438377,-500.0,0.00024457,2]
[345841749,1734509438386,-229.79045927,0.00024457,2]
[345841751,1734509438395,-500.0,0.00024457,2]
[345841753,1734509438405,-500.0,0.00024457,2]
[345841755,1734509438414,-500.0,0.00024457,2]
[345841757,1734509438424,-500.0,0.00024457,2]
[345841759,1734509438434,-500.0,0.00024457,2]
[345841760,1734509438445,-500.0,0.00024457,2]
[345841762,1734509438454,-500.0,0.00024457,2]
[345841764,1734509438464,-500.0,0.00024457,2]
[345841766,1734509438473,-500.0,0.00024457,2]
[345841768,1734509438482,-500.0,0.00024457,2]
[345841770,1734509438490,-204.07010319,0.00024457,2]
[345841772,1734509438502,-295.92989681,0.00024457,2]
[345841774,1734509438511,-440.52847835,0.00024457,2]
[345841776,1734509438520,-500.0,0.00024457,2]
[345841778,1734509438529,-500.0,0.00024457,2]
[345841780,1734509438538,-500.0,0.00024457,2]
[345841781,1734509438547,-500.0,0.00024457,2]
[345841783,1734509438556,-634.82592774,0.00024457,2]
[345841785,1734509438565,-500.0,0.00024457,2]
[345841787,1734509438574,-500.0,0.00024457,2]
[345841789,1734509438582,-500.0,0.00024457,2]
[345841791,1734509438592,-500.0,0.00024457,2]
[345841793,1734509438600,-500.0,0.00024457,2]
[345841795,1734509438609,-19209.7156971,0.00024467,30]
[345842253,1734509443381,-520.83,0.00024467,30]
[345842259,1734509443434,-8075.77,0.00024467,30]
[345842491,1734509445790,-376.859052,0.00024467,30]
[345842502,1734509445882,-1728.36417472,0.00024467,30]
[345842548,1734509842730,300.87,0.00022,30]
[345842562,1734509884910,218.887155,0.00013973,2]
[345842565,1734510296759,150.22145955,0.000255,120]
[345842612,1734510632174,-218.887155,0.00020447,2]
[345842613,1734510632184,-167.279328,0.00023192,2]
[345842614,1734510632194,-295.776,0.0002325,2]
[345842615,1734510632203,-300.0,0.00023463,2]
[345842616,1734510632213,-12434.93245239,0.00023464,2]
[345842617,1734510632225,-197.66092321,0.00023464,2]
[345842618,1734510632234,-188.39,0.00023887,2]
[345842619,1734510632246,-208.75234719,0.00024366,2]
[345842643,1734510640232,-57.53423018,0.00024366,2]
[345842644,1734510640242,-2446.58495586,0.00024465,2]
[345842680,1734510871063,205.278926,0.00013973,2]
[345842682,1734511136406,201.24223173,0.000255,120]
[345842684,1734511546377,-167.66376152,0.00025617,120]
[345842685,1734511546401,-160.0,0.00025729,120]
[345842690,1734511750934,203.295466,0.00013973,2]
[345842700,1734511832407,-203.295466,0.00020447,2]
[345842701,1734511832418,-172.2746542,0.00023101,2]
[345842702,1734511832428,-115.4499028,0.0002325,2]
[345842703,1734511832440,-168.0440972,0.0002325,2]
[345842704,1734511832450,-409.3259028,0.00023476,2]
[345842705,1734511832466,-425.4546305,0.00023476,2]
[345842706,1734511832517,-1987.4456153,0.00023476,2]
[345842707,1734511832527,-200.0,0.00024,7]
[345842708,1734511832536,-233.00075519,0.00024366,2]
[345842709,1734511832546,-300.0,0.000244,11]
[345842710,1734511832556,-300.0,0.00024464,2]
[345842711,1734511832566,-372.313,0.00024465,7]
[345842712,1734511832578,-201.74143233,0.00024465,7]
[345842777,1734511838337,-12.86656767,0.00024465,7]
[345842779,1734511838346,-2831.09,0.00024465,2]
[345842781,1734511838356,-206.43627489,0.00024465,2]
[345842956,1734511840284,-6001.82463487,0.00024465,2]
[345842958,1734511840294,-378.91565035,0.00024465,2]
[345842960,1734511840303,-636.53573513,0.00024466,2]
[345842962,1734511840313,-230.23439383,0.00024466,2]
[345842964,1734511840322,-222.22951634,0.00024466,2]
[345842966,1734511840333,-500.0,0.00024466,2]
[345842968,1734511840343,-500.0,0.00024466,2]
[345842970,1734511840353,-500.0,0.00024466,2]
[345842972,1734511840363,-500.0,0.00024466,2]
[345842974,1734511840373,-500.0,0.00024466,2]
[345842976,1734511840383,-500.0,0.00024466,2]
[345842978,1734511840393,-500.0,0.00024466,2]
[345842980,1734511840402,-169.77500043,0.00024466,2]
[345842982,1734511840412,-247.35216994,0.00024466,2]
[345842984,1734511840422,-500.0,0.00024466,2]
[345842986,1734511840431,-500.0,0.00024466,2]
[345842988,1734511840441,-500.0,0.00024466,2]
[345842990,1734511840451,-500.0,0.00024466,2]
[345842992,1734511840460,-500.0,0.00024466,2]
[345842994,1734511840470,-500.0,0.00024466,2]
[345842996,1734511840479,-500.0,0.00024466,2]
[345842998,1734511840488,-231.88934543,0.00024466,2]
[345842999,1734511840498,-348.31399197,0.00024466,2]
[345843001,1734511840508,-500.0,0.00024466,2]
[345843003,1734511840517,-500.0,0.00024466,2]
[345843006,1734511840527,-500.0,0.00024466,2]
[345843007,1734511840537,-500.0,0.00024466,2]
[345843009,1734511840546,-500.0,0.00024466,2]
[345843011,1734511840555,-500.0,0.00024466,2]
[345843014,1734511840565,-500.0,0.00024466,2]
[345843015,1734511840577,-500.0,0.00024466,2]
[345843018,1734511840587,-500.0,0.00024466,2]
[345843019,1734511840596,-500.0,0.00024466,2]
[345843021,1734511840606,-500.0,0.00024466,2]
[345843023,1734511840615,-500.0,0.00024466,2]
[345843026,1734511840625,-500.0,0.00024466,2]
[345843028,1734511840635,-500.0,0.00024466,2]
[345843030,1734511840644,-500.0,0.00024466,2]
[345843032,1734511840653,-500.0,0.00024466,2]
[345843034,1734511840663,-500.0,0.00024466,2]
[345843036,1734511840672,-500.0,0.00024466,2]
[345843038,1734511840681,-500.0,0.00024466,2]
[345843040,1734511840695,-500.0,0.00024466,2]
[345843042,1734511840704,-500.0,0.00024466,2]
[345843044,1734511840714,-500.0,0.00024466,2]
[345843046,1734511840723,-500.0,0.00024466,2]
[345843048,1734511840734,-500.0,0.00024466,2]
[345843050,1734511840743,-500.0,0.00024466,2]
[345843052,1734511840753,-500.0,0.00024466,2]
[345843054,1734511840762,-352.41283248,0.00024466,2]
[345843055,1734511840774,-500.0,0.00024466,2]
[345843057,1734511840784,-500.0,0.00024466,2]
[345843059,1734511840795,-500.0,0.00024466,2]
[345843061,1734511840805,-500.0,0.00024466,2]
[345843063,1734511840815,-500.0,0.00024466,2]
[345843066,1734511840827,-500.0,0.00024466,2]
[345843067,1734511840841,-500.0,0.00024466,2]
[345843070,1734511840852,-500.0,0.00024466,2]
[345843072,1734511840862,-500.0,0.00024466,2]
[345843074,1734511840872,-500.0,0.00024466,2]
[345843076,1734511840882,-500.0,0.00024466,2]
[345843078,1734511840892,-500.0,0.00024466,2]
[345843080,1734511840901,-500.0,0.00024466,2]
[345843082,1734511840912,-608.65901535,0.00024466,2]
[345843084,1734511840922,-500.0,0.00024466,2]
[345843086,1734511840932,-500.0,0.00024466,2]
[345843088,1734511840941,-134.07043235,0.00024466,2]
[345843663,1734511846653,-1282.95325619,0.00024373,2]
[345843665,1734511846664,-5004.95478076,0.0002443,7]
[345846912,1734512115519,37058.33623848,0.000255,120]
[345846913,1734512115556,104404.08576152,0.000255,120]
[345846917,1734512699573,191.258089,0.00013973,2]
[345846946,1734513032739,-191.258089,0.00020447,2]
[345846947,1734513032750,-271.528,0.0002325,2]
[345846948,1734513032760,-203.8756608,0.00024366,2]
[345846949,1734513032769,-1154.65793058,0.00024373,2]
[345846950,1734513032778,-300.0,0.000244,11]
[345846951,1734513032788,-300.0,0.00024463,2]
[345846952,1734513032797,-300.0,0.00024463,2]
[345846953,1734513032807,-443.02944514,0.00024464,2]
[345846954,1734513032816,-192.43214949,0.00024464,2]
[345846955,1734513032826,-500.0,0.00024464,2]
[345846956,1734513032835,-500.0,0.00024464,2]
[345846957,1734513032844,-500.0,0.00024464,2]
[345846958,1734513032854,-419.72840949,0.00024464,2]
[345846980,1734513038450,-80.27159051,0.00024464,2]
[345846981,1734513038460,-463.91923323,0.00024464,2]
[345846982,1734513038472,-36.08076677,0.00024464,2]
[345846983,1734513038483,-463.69490139,0.00024464,2]
[345847067,1734513194703,359297.17861789,0.000255,120]
[345847308,1734514154137,172.13228,0.00013973,2]
[345847350,1734514233363,-250.0,0.00019178,2]
[345847351,1734514233372,-172.13228,0.00020447,2]
[345847352,1734514233382,-251.0,0.00020548,2]
[345847353,1734514233392,-260.593,0.0002325,2]
[345847354,1734514233402,-4287.36560804,0.0002422,2]
[345847355,1734514233411,-666.40911196,0.00024345,15]
[345847356,1734514233435,-460.6406294,0.00024345,15]
[345847401,1734514243542,-1039.19213754,0.00024363,2]
[345847403,1734514243552,-159.34327782,0.00024366,2]
[345847405,1734514243562,-159.34327782,0.0002437,2]
[345847407,1734514243574,-159.34327782,0.00024373,2]
[345847409,1734514243584,-6098.878029,0.0002438,7]
[345847723,1734514246619,-261.93236002,0.0002438,7]
[345848189,1734515048750,163.072686,0.00013973,2]
[345848244,1734515432847,-380.87288369,0.00020393,2]
[345848295,1734515443795,-751.58034751,0.00020393,2]
[345848296,1734515443805,-163.072686,0.00020807,2]
[345848297,1734515443816,-164.806563,0.00022825,2]
[345848298,1734515443825,-249.411,0.0002325,2]
[345848299,1734515443835,-2595.52187703,0.00023303,2]
[345848300,1734515443847,-204.30351287,0.00023303,2]
[345848301,1734515443856,-300.0,0.00023999,2]
[345848302,1734515443866,-300.0,0.00023999,2]
[345848303,1734515443875,-3104.13045488,0.00024,2]
[345848304,1734515443885,-750.51010443,0.00024,2]
[345848305,1734515443896,-13994.27283203,0.00024,5]
[345848333,1734515956196,163.072686,0.00013973,2]
[345848416,1734516632821,-163.072686,0.00021661,2]
[345848417,1734516632831,-426.89711343,0.00022841,2]
[345848437,1734516643015,-2666.58597747,0.00022841,2]
[345848438,1734516643025,-164.806564,0.0002298,2]
[345848439,1734516643034,-238.865,0.0002324,2]
[345848440,1734516643044,-502.38139609,0.0002378,2]
[345848441,1734516643054,-300.0,0.00023999,2]
[345848442,1734516643063,-1552.06522744,0.00024,2]
[345848443,1734516643072,-375.25505221,0.00024,2]
[345848444,1734516643081,-3799.17212946,0.00024,5]
[345848459,1734516646054,-1849.89701396,0.00024,5]
[345848470,1734516942552,163.072686,0.00013973,2]
[345848541,1734517832865,-150.087111,0.000216,2]
[345848542,1734517832874,-202.32704347,0.00021999,2]
[345848548,1734517838148,-97.67295653,0.00021999,2]
[345848549,1734517838158,-300.0,0.00021999,2]
[345848550,1734517838167,-776.03261372,0.00022,2]
[345848551,1734517838177,-187.62752611,0.00022,2]
[345848552,1734517838186,-6590.72286666,0.00022,11]
[345848631,1734517843126,-6618.98061944,0.00022,11]
[345848632,1734517843136,-15751.15054601,0.00022,2]
[345848633,1734517843146,-390.74051632,0.00022659,2]
[345848634,1734517843155,-297.85,0.00022759,2]
[345848635,1734517843165,-163.072686,0.00022759,2]
[345848636,1734517843175,-214.60941055,0.00022759,2]
[345848637,1734517843185,-380.3954142,0.0002276,2]
[345848638,1734517843194,-10825.26656385,0.000229,5]
[345848673,1734517930046,163.072686,0.00013973,2]
[345848690,1734518703221,937.97581326,0.00025,120]
[345848727,1734519032345,-600.0,0.00021331,10]
[345848731,1734519032372,-497.1246294,0.00021331,10]
[345848897,1734519040656,-3902.8753706,0.00021331,10]
[345848898,1734519040666,-166.0429461,0.00021743,2]
[345848899,1734519040676,-1246.77780702,0.0002243,2]
[345848906,1734519043360,-1566.75,0.00022206,10]
[345848928,1734519046302,-1690.06382505,0.00022206,10]
[345848931,1734519123030,163.072686,0.00013973,2]
[345848944,1734519479360,10000.0,0.00024,60]
[345848948,1734519530626,5000.0,0.000255,120]
[345848949,1734519564668,5000.0,0.000255,120]
[345848950,1734519581813,10000.0,0.00024,60]
[345848951,1734519592990,7291.29912832,0.00024,60]
[345848952,1734519604705,3341.78,0.00022,60]
[345848953,1734519633176,10000.0,0.00022,60]
[345848954,1734519642797,10000.0,0.00022,60]
[345848955,1734519650371,8176.61271029,0.00022,60]
[345848956,1734519650396,1823.38728971,0.00022,60]
[345848957,1734519657569,10000.0,0.00022,60]
[345848958,1734519665067,10000.0,0.00022,60]
[345848959,1734519717142,693.15,0.00022,60]
[345848963,1734519971395,10000.0,0.000255,120]
[345848964,1734519972660,163.072686,0.00013973,2]
[345848965,1734519983778,10000.0,0.000255,120]
[345848966,1734519998015,6832.0,0.000255,120]
[345848967,1734520044026,6050.0,0.000255,120]
[345848969,1734520124518,5000.0,0.00022,30]
[345849043,1734520233433,-5000.0,0.00019999,10]
[345849044,1734520233444,-1743.18617495,0.00020201,10]
[345849045,1734520233453,-300.0,0.00020405,2]
[345849046,1734520233463,-300.0,0.00020405,2]
[345849047,1734520233473,-738.22209098,0.00020406,2]
[345849128,1734520240876,-12796.792593,0.00020406,2]
[345849168,1734520243506,-1016.76387101,0.00020406,2]
[345849169,1734520243556,-365.68701843,0.00020406,2]
[345849212,1734520246568,-1475.28199388,0.00020406,2]
[345849213,1734520246577,-176.401179,0.00021469,2]
[345849214,1734520246586,-198.22219563,0.00021474,2]
[345849226,1734521013510,163.072686,0.00013973,2]
[345849239,1734521314941,5032.43559114,0.0002,120]
[345849240,1734521317235,22762.80302726,0.00025,120]
[345849241,1734521317289,5246.30125139,0.00025,120]
[345849242,1734521318250,4889.97497546,0.0002525,120]
[345849295,1734521433759,-258.53021355,0.00020648,2]
[345849296,1734521433769,-327.8200664,0.00020748,2]
[345849297,1734521433778,-1035.72565339,0.00021374,2]
[345849298,1734521433788,-2054.6136549,0.00021497,2]
[345849299,1734521433798,-551.28292806,0.000216,2]
[345849300,1734521433807,-300.0,0.00021699,2]
[345849301,1734521433817,-31185.41,0.000217,4]
[345849302,1734521433827,-1039.19213754,0.000217,2]
[345849303,1734521433836,-1671.68016361,0.000217,2]
[345849304,1734521433846,-333.15,0.0002176,2]
[345849305,1734521433855,-238.28,0.00021768,2]
[345849306,1734521433865,-155.56066144,0.00021769,2]
[345849307,1734521433875,-161.16407568,0.00021769,2]
[345849308,1734521433885,-445.57501459,0.00021769,2]
[345849309,1734521433894,-337.809477,0.00021769,2]
[345849310,1734521433903,-337.809477,0.00021769,2]
[345849311,1734521433913,-337.809477,0.00021769,2]
[345849312,1734521433923,-337.809477,0.00021769,2]
[345849313,1734521433933,-337.809477,0.00021769,2]
[345849314,1734521433942,-337.809477,0.00021769,2]
[345849315,1734521433954,-337.809477,0.00021769,2]
[345849316,1734521433964,-337.809477,0.00021769,2]
[345849317,1734521433973,-337.809477,0.00021769,2]
[345849318,1734521433983,-337.809477,0.00021769,2]
[345849319,1734521433993,-337.809477,0.00021769,2]
[345849320,1734521434005,-337.809477,0.00021769,2]
[345849321,1734521434014,-337.809477,0.00021769,2]
[345849322,1734521434024,-337.809477,0.00021769,2]
[345849323,1734521434034,-337.809477,0.00021769,2]
[345849324,1734521434044,-337.809477,0.00021769,2]
[345849325,1734521434054,-337.809477,0.00021769,2]
[345849326,1734521434064,-337.809477,0.00021769,2]
[345849327,1734521434074,-337.809477,0.00021769,2]
[345849328,1734521434084,-337.809469,0.00021769,2]
[345849329,1734521434094,-500.0,0.00021769,2]
[345849330,1734521434103,-500.0,0.00021769,2]
[345849331,1734521434113,-500.0,0.00021769,2]
[345849332,1734521434123,-500.0,0.00021769,2]
[345849333,1734521434132,-500.0,0.00021769,2]
[345849334,1734521434142,-500.0,0.00021769,2]
[345849335,1734521434152,-500.0,0.00021769,2]
[345849336,1734521434162,-500.0,0.00021769,2]
[345849337,1734521434172,-500.0,0.00021769,2]
[345849338,1734521434181,-500.0,0.00021769,2]
[345849339,1734521434191,-500.0,0.00021769,2]
[345849340,1734521434200,-500.0,0.00021769,2]
[345849341,1734521434210,-500.0,0.00021769,2]
[345849342,1734521434219,-500.0,0.00021769,2]
[345849343,1734521434229,-500.0,0.00021769,2]
[345849344,1734521434238,-500.0,0.00021769,2]
[345849345,1734521434247,-500.0,0.00021769,2]
[345849346,1734521434259,-500.0,0.00021769,2]
[345849347,1734521434268,-500.0,0.00021769,2]
[345849348,1734521434278,-500.0,0.00021769,2]
[345849349,1734521434289,-2625929.36,0.0002177,4]
[345849350,1734521434299,-298.3954316,0.00021773,2]
[345849351,1734521434308,-500.0,0.00021773,2]
[345849352,1734521434317,-501.19249205,0.00021773,2]
[345849353,1734521434328,-151.0,0.000218,3]
[345849354,1734521434337,-151.0,0.000218,4]
[345849355,1734521434347,-501.00772169,0.000218,2]
[345849356,1734521434356,-502.34255917,0.000218,2]
[345849357,1734521434366,-598.10887286,0.000218,2]
[345849358,1734521434380,-500.73931739,0.000218,2]
[345849359,1734521434389,-522.37846589,0.000218,2]
[345849360,1734521434399,-371.98230246,0.000218,2]
[345849361,1734521434408,-500.0,0.000218,2]
[345849362,1734521434419,-501.12667664,0.000218,2]
[345849363,1734521434428,-528.92306672,0.000218,2]
[345849364,1734521434437,-160.25381503,0.000218,2]
[345849365,1734521434448,-500.0,0.000218,2]
[345849366,1734521434458,-417.05994075,0.000218,2]
[345849367,1734521434468,-160.7543924,0.00021811,2]
[345849368,1734521434477,-501.06071937,0.00021811,2]
[345849369,1734521434487,-501.67423357,0.00021922,2]
[345849370,1734521434497,-502.45359091,0.00021922,2]
[345849371,1734521434507,-1510.00793434,0.00022,2]
[345849372,1734521434516,-1039.19213747,0.00022203,2]
[345849373,1734521434526,-551.28292806,0.00022261,2]
[345849374,1734521434535,-1000.0,0.00022321,2]
[345849375,1734521434545,-1039.19213747,0.00022706,2]
[345849376,1734521434555,-300.0,0.0002288,2]
[345849377,1734521434564,-47013.73092506,0.000229,5]
[345849378,1734521434574,-551.28292806,0.00022922,2]
[345849379,1734521434583,-1039.19213747,0.00023209,2]
[345849380,1734521434594,-500.25159847,0.00023322,2]
[345849381,1734521434604,-188.39,0.00023521,2]
[345849382,1734521434614,-551.28292806,0.00023583,2]
[345849383,1734521434623,-602.76044991,0.00023671,2]
[345849384,1734521434633,-1039.19213747,0.00023712,2]
[345849385,1734521434642,-420.0,0.00023869,2]
[345849386,1734521434652,-364.18971656,0.0002388,2]
[345849387,1734521434661,-68749.62461298,0.00023961,2]
[345849388,1734521434671,-61356.65802455,0.00024,5]
[345849389,1734521434681,-2708.70087168,0.00024,60]
[345849390,1734521434691,-1205.7522915,0.00024,4]
[345849391,1734521434701,-5000.0,0.00024,2]
[345849392,1734521434710,-5000.0,0.00024,2]
[345849393,1734521434719,-5000.0,0.00024,2]
[345849394,1734521434728,-2181.6446282,0.00024,2]
[345849395,1734521434738,-5000.0,0.00024,2]
[345849396,1734521434747,-5000.0,0.00024,2]
[345849397,1734521434757,-1085.312928,0.00024,2]
[345849398,1734521434767,-2713.13,0.00024109,2]
[345849399,1734521434777,-2459.252,0.00024123,15]
[345849400,1734521434787,-527.1168464,0.00024194,2]
[345849401,1734521434796,-1039.19213747,0.00024215,2]
[345849402,1734521434806,-1000.0,0.00024229,2]
[345849403,1734521434815,-551.28292806,0.00024244,2]
[345849404,1734521434824,-285.1066892,0.000243,10]
[345849405,1734521434833,-1000.0,0.00024333,2]
[345849406,1734521434843,-666.0,0.00024359,2]
[345849407,1734521434852,-1000.0,0.00024364,2]
[345849408,1734521434861,-187.0,0.000244,2]
[345849409,1734521434870,-300.0,0.000244,11]
[345849410,1734521434880,-13916.63810403,0.0002445,2]
[345849411,1734521434889,-74957.56544702,0.00024457,2]
[345849412,1734521434906,-554.47025298,0.00024457,2]
[345849461,1734521439032,-500.0,0.00021769,2]
[345849464,1734521439045,-500.0,0.00021769,2]
[345849466,1734521439056,-500.0,0.00021769,2]
[345849468,1734521439066,-279.37684857,0.00021769,2]
[345849470,1734521439076,-500.0,0.00021769,2]
[345849472,1734521439086,-500.0,0.00021769,2]
[345849473,1734521439095,-139.91500709,0.00021769,2]
[345849645,1734521440955,-360.08499291,0.00021769,2]
[345849647,1734521440965,-500.0,0.00021769,2]
[345849649,1734521440975,-192.62354491,0.00021769,2]
[345849651,1734521440985,-500.0,0.00021769,2]
[345849653,1734521440994,-247.28879472,0.00021769,2]
[345849655,1734521441006,-252.71120528,0.00021769,2]
[345849657,1734521441019,-500.0,0.00021769,2]
[345849659,1734521441029,-500.0,0.00021769,2]
[345849661,1734521441038,-316.36529463,0.00021769,2]
[345849664,1734521441050,-183.63470537,0.00021769,2]
[345849666,1734521441059,-500.0,0.00021769,2]
[345849667,1734521441068,-275.12094285,0.00021769,2]
[345849670,1734521441079,-224.87905715,0.00021769,2]
[345849672,1734521441089,-500.0,0.00021769,2]
[345849674,1734521441099,-271.52899003,0.00021769,2]
[345849676,1734521441108,-500.0,0.00021769,2]
[345849678,1734521441118,-500.0,0.00021769,2]
[345849680,1734521441127,-500.0,0.00021769,2]
[345849682,1734521441138,-500.0,0.00021769,2]
[345849684,1734521441148,-500.0,0.00021769,2]
[345849686,1734521441159,-500.0,0.00021769,2]
[345849688,1734521441169,-500.0,0.00021769,2]
[345849690,1734521441179,-500.0,0.00021769,2]
[345849692,1734521441190,-500.0,0.00021769,2]
[345849694,1734521441200,-500.0,0.00021769,2]
[345849711,1734521441368,-500.0,0.00021769,2]
[345849713,1734521441385,-500.0,0.00021769,2]
[345849715,1734521441395,-291.8732,0.00021769,2]
[345849717,1734521441406,-500.0,0.00021769,2]